[Event "Live Chess"]
[Site "Chess.com"]
[Date "2023.05.21"]
[Round "-"]
[White "Rusty_Bridges"]
[Black "smoggyrabbit"]
[Result "1-0"]
[WhiteElo "1482"]
[BlackElo "1739"]
[TimeControl "300"]
[EndTime "22:04:48 PDT"]
[Termination "Rusty_Bridges won on time"]

1. e4 {[%clk 0:04:42.5]} 1... e6 {[%clk 0:04:59.1]} 2. Nf3 {[%clk 0:04:39.7]}
2... d5 {[%clk 0:04:57.7]} 3. exd5 {[%clk 0:04:38]} 3... exd5 {[%clk 0:04:56.5]}
4. Nc3 {[%clk 0:04:34.5]} 4... c6 {[%clk 0:04:54.8]} 5. d4 {[%clk 0:04:32.9]}
5... Bd6 {[%clk 0:04:53.8]} 6. Bd3 {[%clk 0:04:29.9]} 6... Ne7 {[%clk
0:04:52.7]} 7. O-O {[%clk 0:04:27.6]} 7... O-O {[%clk 0:04:51.7]} 8. Bg5 {[%clk
0:04:25.2]} 8... f6 {[%clk 0:04:50.4]} 9. Bh4 {[%clk 0:04:24]} 9... Bf5 {[%clk
0:04:49.5]} 10. Re1 {[%clk 0:04:13.8]} 10... Bxd3 {[%clk 0:04:40.9]} 11. Qxd3
{[%clk 0:04:11.6]} 11... Na6 {[%clk 0:04:37.9]} 12. a3 {[%clk 0:04:02.6]} 12...
Qd7 {[%clk 0:04:35.9]} 13. Bg3 {[%clk 0:03:45.8]} 13... Bxg3 {[%clk 0:04:16.3]}
14. hxg3 {[%clk 0:03:44.2]} 14... Ng6 {[%clk 0:04:14.8]} 15. Ne2 {[%clk
0:03:27]} 15... Rfe8 {[%clk 0:04:12.2]} 16. Nf4 {[%clk 0:03:23.9]} 16... Nxf4
{[%clk 0:04:07.1]} 17. gxf4 {[%clk 0:03:21.8]} 17... Rxe1+ {[%clk 0:03:48.6]}
18. Rxe1 {[%clk 0:03:18.3]} 18... Re8 {[%clk 0:03:46.6]} 19. Rf1 {[%clk
0:03:02.3]} 19... Re4 {[%clk 0:03:35.5]} 20. g3 {[%clk 0:03:00.4]} 20... Qg4
{[%clk 0:03:22.9]} 21. Kg2 {[%clk 0:02:56.6]} 21... Nc7 {[%clk 0:02:25.5]} 22.
Rh1 {[%clk 0:02:40]} 22... Ne6 {[%clk 0:02:21.7]} 23. Kf1 {[%clk 0:02:27.7]}
23... g5 {[%clk 0:00:57.7]} 24. Nd2 {[%clk 0:02:15.6]} 24... Nxf4 {[%clk
0:00:18.2]} 25. gxf4 {[%clk 0:01:59.4]} 25... Qd1+ {[%clk 0:00:16.5]} 26. Kg2
{[%clk 0:01:54]} 26... Qg4+ {[%clk 0:00:14.7]} 27. Qg3 {[%clk 0:01:47]} 27...
Qxg3+ {[%clk 0:00:13.4]} 28. Kxg3 {[%clk 0:01:41.3]} 28... gxf4+ {[%clk
0:00:12.2]} 29. Kf3 {[%clk 0:01:38.6]} 29... Rxd4 {[%clk 0:00:11.3]} 30. Ke2
{[%clk 0:01:27]} 30... Kg7 {[%clk 0:00:09.1]} 31. Rh3 {[%clk 0:01:23.2]} 31...
Kg6 {[%clk 0:00:07.8]} 32. Nf3 {[%clk 0:01:16.6]} 32... Re4+ {[%clk 0:00:06.6]}
33. Kd2 {[%clk 0:01:13.5]} 33... Re8 {[%clk 0:00:05.5]} 34. Nd4 {[%clk
0:01:11.3]} 34... Kg5 {[%clk 0:00:03.4]} 35. Rxh7 {[%clk 0:01:04.5]} 35... Re4
{[%clk 0:00:02]} 36. c3 {[%clk 0:01:01.5]} 36... Kg4 {[%clk 0:00:01]} 37. Rg7+
{[%clk 0:00:59.9]} 1-0

[Event "Live Chess"]
[Site "Chess.com"]
[Date "2023.05.21"]
[Round "-"]
[White "Long1968"]
[Black "Tushinskiy"]
[Result "0-1"]
[WhiteElo "1055"]
[BlackElo "2212"]
[TimeControl "300"]
[EndTime "22:06:33 PDT"]
[Termination "Tushinskiy won on time"]

1. e4 {[%clk 0:04:47.2]} 1... e5 {[%clk 0:04:58.9]} 2. f4 {[%clk 0:04:44.8]}
2... d6 {[%clk 0:04:58.8]} 3. d4 {[%clk 0:04:42.4]} 3... exd4 {[%clk 0:04:57.4]}
4. Nf3 {[%clk 0:04:38.7]} 4... Nc6 {[%clk 0:04:55.2]} 5. Bc4 {[%clk 0:04:32.3]}
5... Bg4 {[%clk 0:04:53.4]} 6. O-O {[%clk 0:04:26.2]} 6... Nf6 {[%clk
0:04:51.9]} 7. e5 {[%clk 0:04:15.4]} 7... dxe5 {[%clk 0:04:50.5]} 8. fxe5 {[%clk
0:04:09.5]} 8... Nxe5 {[%clk 0:04:49.5]} 9. Re1 {[%clk 0:03:58.6]} 9... Bd6
{[%clk 0:04:45.1]} 10. Qe2 {[%clk 0:03:27.1]} 10... O-O {[%clk 0:04:41.2]} 11.
h3 {[%clk 0:03:14.3]} 11... Nxf3+ {[%clk 0:04:38.5]} 12. gxf3 {[%clk 0:03:05.9]}
12... Bxh3 {[%clk 0:04:37.1]} 13. Bg5 {[%clk 0:02:57.7]} 13... Re8 {[%clk
0:04:30.8]} 14. Qxe8+ {[%clk 0:02:33]} 14... Qxe8 {[%clk 0:04:26.1]} 15. Rxe8+
{[%clk 0:02:27.3]} 15... Rxe8 {[%clk 0:04:26]} 16. Nd2 {[%clk 0:02:21.3]} 16...
h6 {[%clk 0:04:20.9]} 17. Bxf6 {[%clk 0:02:12.9]} 17... gxf6 {[%clk 0:04:19.7]}
18. Ne4 {[%clk 0:02:09.4]} 18... Be7 {[%clk 0:04:18.6]} 19. Re1 {[%clk
0:02:03.8]} 19... Kf8 {[%clk 0:04:16.9]} 20. Kh2 {[%clk 0:01:34.1]} 20... Bf5
{[%clk 0:04:14.4]} 21. Bd5 {[%clk 0:01:04.6]} 21... c6 {[%clk 0:04:08.6]} 22.
Bb3 {[%clk 0:01:01.7]} 22... Bb4 {[%clk 0:04:03.1]} 23. Re2 {[%clk 0:00:55.8]}
23... Bxe4 {[%clk 0:04:01.1]} 24. fxe4 {[%clk 0:00:50.7]} 24... Re5 {[%clk
0:03:59.7]} 25. Kg3 {[%clk 0:00:41.4]} 25... Ke7 {[%clk 0:03:43.8]} 26. a3
{[%clk 0:00:31.7]} 26... Bd6 {[%clk 0:03:41.9]} 27. Kf3 {[%clk 0:00:26.2]} 27...
b5 {[%clk 0:03:36]} 28. Rd2 {[%clk 0:00:19.9]} 28... c5 {[%clk 0:03:33.7]} 29.
c3 {[%clk 0:00:16.3]} 29... d3 {[%clk 0:03:22.1]} 30. Rxd3 {[%clk 0:00:12.4]}
30... c4 {[%clk 0:03:21.4]} 31. Rxd6 {[%clk 0:00:01.6]} 31... Kxd6 {[%clk
0:03:17.8]} 0-1

[Event "Live Chess"]
[Site "Chess.com"]
[Date "2023.05.21"]
[Round "-"]
[White "Doge_Dandolo"]
[Black "Shepherds_Pie"]
[Result "0-1"]
[WhiteElo "1900"]
[BlackElo "1920"]
[TimeControl "300"]
[EndTime "22:06:35 PDT"]
[Termination "Shepherds_Pie won by resignation"]

1. Nf3 {[%clk 0:04:56.9]} 1... Nf6 {[%clk 0:04:58.4]} 2. c4 {[%clk 0:04:55.7]}
2... c5 {[%clk 0:04:56.9]} 3. g3 {[%clk 0:04:54.2]} 3... d5 {[%clk 0:04:55.3]}
4. cxd5 {[%clk 0:04:51.9]} 4... Nxd5 {[%clk 0:04:54.2]} 5. Bg2 {[%clk 0:04:51]}
5... Nc6 {[%clk 0:04:53.1]} 6. O-O {[%clk 0:04:49.6]} 6... Nc7 {[%clk
0:04:50.6]} 7. Nc3 {[%clk 0:04:48.6]} 7... e5 {[%clk 0:04:49.5]} 8. d3 {[%clk
0:04:47.7]} 8... Be7 {[%clk 0:04:48.2]} 9. Be3 {[%clk 0:04:45.4]} 9... O-O
{[%clk 0:04:46.1]} 10. Rc1 {[%clk 0:04:44.1]} 10... f6 {[%clk 0:04:42.2]} 11.
Ne4 {[%clk 0:04:42.3]} 11... b6 {[%clk 0:04:40.2]} 12. a3 {[%clk 0:04:40.6]}
12... Bb7 {[%clk 0:04:39.1]} 13. Bd2 {[%clk 0:04:32.1]} 13... Rc8 {[%clk
0:04:36.9]} 14. b4 {[%clk 0:04:23.4]} 14... cxb4 {[%clk 0:04:33.3]} 15. axb4
{[%clk 0:04:21.8]} 15... Kh8 {[%clk 0:04:30.7]} 16. Qb3 {[%clk 0:04:17.2]} 16...
Nb5 {[%clk 0:04:23.4]} 17. Rc2 {[%clk 0:03:59.3]} 17... Ncd4 {[%clk 0:04:20]}
18. Nxd4 {[%clk 0:03:57.2]} 18... Nxd4 {[%clk 0:04:18.3]} 19. Rxc8 {[%clk
0:03:55.8]} 19... Qxc8 {[%clk 0:04:11.7]} 20. Qb2 {[%clk 0:03:49.7]} 20... Qc2
{[%clk 0:04:05.3]} 21. Qxc2 {[%clk 0:03:47.8]} 21... Nxc2 {[%clk 0:04:04.1]} 22.
Rb1 {[%clk 0:03:44.3]} 22... Nd4 {[%clk 0:04:01.8]} 23. Kf1 {[%clk 0:03:39.8]}
23... h6 {[%clk 0:03:58.4]} 24. e3 {[%clk 0:03:29.7]} 24... Ne6 {[%clk
0:03:51.6]} 25. Bc3 {[%clk 0:03:20.1]} 25... Rd8 {[%clk 0:03:49]} 26. Ke2 {[%clk
0:03:13.1]} 26... f5 {[%clk 0:03:44.6]} 27. Nd2 {[%clk 0:03:07.8]} 27... Bxg2
{[%clk 0:03:42.2]} 0-1

[Event "Live Chess"]
[Site "Chess.com"]
[Date "2023.05.21"]
[Round "-"]
[White "tpm07"]
[Black "MaximKhimchenko"]
[Result "0-1"]
[WhiteElo "1920"]
[BlackElo "1359"]
[TimeControl "300"]
[EndTime "22:06:38 PDT"]
[Termination "MaximKhimchenko won by checkmate"]

1. e4 {[%clk 0:04:54.6]} 1... e5 {[%clk 0:04:59.9]} 2. Nf3 {[%clk 0:04:52.1]}
2... Nc6 {[%clk 0:04:59.4]} 3. Bb5 {[%clk 0:04:50.4]} 3... Nf6 {[%clk
0:04:57.9]} 4. d3 {[%clk 0:04:48.8]} 4... a6 {[%clk 0:04:57]} 5. Bxc6 {[%clk
0:04:44.6]} 5... dxc6 {[%clk 0:04:56.9]} 6. Nxe5 {[%clk 0:04:43.8]} 6... Bc5
{[%clk 0:04:54.2]} 7. O-O {[%clk 0:04:38.7]} 7... h5 {[%clk 0:04:51.1]} 8. Be3
{[%clk 0:04:36.4]} 8... Bd6 {[%clk 0:04:50.4]} 9. Nc4 {[%clk 0:04:33.3]} 9...
Bxh2+ {[%clk 0:04:47.1]} 10. Kxh2 {[%clk 0:04:17.6]} 10... Ng4+ {[%clk 0:04:47]}
11. Kg1 {[%clk 0:04:16.4]} 11... Qh4 {[%clk 0:04:45.5]} 12. Bf4 {[%clk
0:04:15.9]} 12... Qf6 {[%clk 0:04:37.6]} 13. Qd2 {[%clk 0:03:48]} 13... h4
{[%clk 0:04:29.8]} 14. e5 {[%clk 0:03:43.9]} 14... Qg6 {[%clk 0:04:25.6]} 15.
Qe2 {[%clk 0:03:23.8]} 15... h3 {[%clk 0:04:24.1]} 16. Qe4 {[%clk 0:03:23.3]}
16... Bf5 {[%clk 0:04:20.4]} 17. Qf3 {[%clk 0:03:16.4]} 17... O-O-O {[%clk
0:04:04.1]} 18. g3 {[%clk 0:02:53.4]} 18... Be6 {[%clk 0:04:00.1]} 19. Nc3
{[%clk 0:02:48.4]} 19... b5 {[%clk 0:03:56.9]} 20. Na5 {[%clk 0:02:42.8]} 20...
b4 {[%clk 0:03:54.5]} 21. Na4 {[%clk 0:02:36.8]} 21... Bd5 {[%clk 0:03:52.9]}
22. Qe2 {[%clk 0:02:29]} 22... h2# {[%clk 0:03:49.2]} 0-1

[Event "Live Chess"]
[Site "Chess.com"]
[Date "2023.05.21"]
[Round "-"]
[White "Nazarenko_vital"]
[Black "Conradical12"]
[Result "1-0"]
[WhiteElo "1622"]
[BlackElo "1623"]
[TimeControl "300"]
[EndTime "22:07:56 PDT"]
[Termination "Nazarenko_vital won by resignation"]

1. e4 {[%clk 0:04:56.2]} 1... e5 {[%clk 0:04:58.6]} 2. Nf3 {[%clk 0:04:54.8]}
2... Nc6 {[%clk 0:04:58]} 3. d4 {[%clk 0:04:53.4]} 3... exd4 {[%clk 0:04:56.4]}
4. Nxd4 {[%clk 0:04:52]} 4... Nf6 {[%clk 0:04:55.8]} 5. Nc3 {[%clk 0:04:50.5]}
5... Bc5 {[%clk 0:04:53.5]} 6. Be3 {[%clk 0:04:46.7]} 6... Bxd4 {[%clk
0:04:51.8]} 7. Bxd4 {[%clk 0:04:44.1]} 7... O-O {[%clk 0:04:51.7]} 8. Be2 {[%clk
0:04:30.5]} 8... Nxd4 {[%clk 0:04:28.2]} 9. Qxd4 {[%clk 0:04:28.9]} 9... b6
{[%clk 0:04:27.6]} 10. Bf3 {[%clk 0:04:08]} 10... Bb7 {[%clk 0:03:48.5]} 11.
O-O-O {[%clk 0:03:58.9]} 11... a5 {[%clk 0:03:45.3]} 12. e5 {[%clk 0:03:56]}
12... Bxf3 {[%clk 0:03:43.2]} 13. gxf3 {[%clk 0:03:51.9]} 13... Ne8 {[%clk
0:03:42.4]} 14. Rhg1 {[%clk 0:03:49]} 14... a4 {[%clk 0:03:39.2]} 15. Qxd7
{[%clk 0:03:44.5]} 15... Qxd7 {[%clk 0:03:33.3]} 16. Rxd7 {[%clk 0:03:42.8]}
16... a3 {[%clk 0:03:32]} 17. b3 {[%clk 0:03:40]} 17... g6 {[%clk 0:03:20.9]}
18. Nb5 {[%clk 0:03:29.8]} 18... Ng7 {[%clk 0:03:07]} 19. Nxc7 {[%clk
0:03:24.3]} 19... Rac8 {[%clk 0:03:03.7]} 20. Nd5 {[%clk 0:03:21.1]} 20... Rfe8
{[%clk 0:03:01.3]} 21. Nf6+ {[%clk 0:03:16.1]} 21... Kf8 {[%clk 0:02:59.2]} 1-0

[Event "Live Chess"]
[Site "Chess.com"]
[Date "2023.05.21"]
[Round "-"]
[White "seabuck"]
[Black "mirandaasilva"]
[Result "1-0"]
[WhiteElo "1886"]
[BlackElo "1683"]
[TimeControl "300"]
[EndTime "22:08:17 PDT"]
[Termination "seabuck won by resignation"]

1. d4 {[%clk 0:04:57.3]} 1... Nf6 {[%clk 0:04:56.9]} 2. c4 {[%clk 0:04:56.2]}
2... g6 {[%clk 0:04:56]} 3. Nc3 {[%clk 0:04:55.2]} 3... Bg7 {[%clk 0:04:53.8]}
4. e4 {[%clk 0:04:54.2]} 4... d6 {[%clk 0:04:52.4]} 5. Be2 {[%clk 0:04:53.1]}
5... O-O {[%clk 0:04:41.9]} 6. Nf3 {[%clk 0:04:51.6]} 6... Nh5 {[%clk
0:04:38.3]} 7. O-O {[%clk 0:04:39.4]} 7... e5 {[%clk 0:04:35.2]} 8. dxe5 {[%clk
0:04:32.3]} 8... dxe5 {[%clk 0:04:33.1]} 9. Bg5 {[%clk 0:04:26.4]} 9... Qxd1
{[%clk 0:04:29.8]} 10. Rfxd1 {[%clk 0:04:23.8]} 10... c6 {[%clk 0:04:28.8]} 11.
g3 {[%clk 0:04:07.8]} 11... Be6 {[%clk 0:04:14]} 12. Be7 {[%clk 0:03:55.3]}
12... Re8 {[%clk 0:04:04.6]} 13. Bd6 {[%clk 0:03:53.6]} 13... Nd7 {[%clk
0:04:01.3]} 14. c5 {[%clk 0:03:42.8]} 14... a5 {[%clk 0:03:56.5]} 15. Rd2 {[%clk
0:03:31.9]} 15... h6 {[%clk 0:03:28]} 16. Rad1 {[%clk 0:03:25.8]} 16... Rac8
{[%clk 0:03:05.2]} 17. b3 {[%clk 0:03:18.6]} 17... Kh7 {[%clk 0:03:00.3]} 18.
Na4 {[%clk 0:03:09.4]} 18... Nhf6 {[%clk 0:02:30.6]} 19. Nc3 {[%clk 0:02:50.6]}
19... b5 {[%clk 0:01:56.5]} 20. cxb6 {[%clk 0:02:41.2]} 20... Nxb6 {[%clk
0:01:24]} 21. Nxe5 {[%clk 0:02:34]} 21... Nfd7 {[%clk 0:01:03.3]} 22. f4 {[%clk
0:02:19.2]} 22... Nxe5 {[%clk 0:00:51.9]} 23. fxe5 {[%clk 0:02:11.4]} 23... Nd7
{[%clk 0:00:43.9]} 24. Ba6 {[%clk 0:02:02.5]} 24... Ra8 {[%clk 0:00:23.7]} 25.
Bb7 {[%clk 0:02:00.3]} 25... Ra7 {[%clk 0:00:22.9]} 26. Bxc6 {[%clk 0:01:54.9]}
26... Nxe5 {[%clk 0:00:22.8]} 27. Bxe5 {[%clk 0:01:52.2]} 27... Bxe5 {[%clk
0:00:21.2]} 28. Bxe8 {[%clk 0:01:51.2]} 28... Bxc3 {[%clk 0:00:17.6]} 29. Rc2
{[%clk 0:01:44.7]} 29... Bb4 {[%clk 0:00:16.2]} 30. Kg2 {[%clk 0:01:32.4]} 30...
a4 {[%clk 0:00:15.7]} 31. Bxa4 {[%clk 0:01:29.1]} 31... Re7 {[%clk 0:00:12.1]}
32. Bc6 {[%clk 0:01:25.6]} 32... Bd6 {[%clk 0:00:10.7]} 33. Bd5 {[%clk
0:01:23.3]} 33... Be5 {[%clk 0:00:08.9]} 34. a4 {[%clk 0:01:17.6]} 1-0

[Event "Live Chess"]
[Site "Chess.com"]
[Date "2023.05.21"]
[Round "-"]
[White "BostonStrangler"]
[Black "chessfiction"]
[Result "0-1"]
[WhiteElo "2062"]
[BlackElo "2353"]
[TimeControl "300"]
[EndTime "22:08:43 PDT"]
[Termination "chessfiction won on time"]

1. Nf3 {[%clk 0:04:58]} 1... d5 {[%clk 0:04:59.5]} 2. c4 {[%clk 0:04:55.7]} 2...
d4 {[%clk 0:04:57.8]} 3. g3 {[%clk 0:04:53.5]} 3... e5 {[%clk 0:04:56.7]} 4.
Nxe5 {[%clk 0:04:49.5]} 4... Bd6 {[%clk 0:04:55.7]} 5. Nf3 {[%clk 0:04:48.4]}
5... h5 {[%clk 0:04:54.4]} 6. h4 {[%clk 0:04:38.2]} 6... Bg4 {[%clk 0:04:50.1]}
7. Bg2 {[%clk 0:04:35.8]} 7... Nf6 {[%clk 0:04:47.4]} 8. d3 {[%clk 0:04:34.7]}
8... Nc6 {[%clk 0:04:45.6]} 9. Bg5 {[%clk 0:04:32.8]} 9... Qd7 {[%clk
0:04:44.5]} 10. Nbd2 {[%clk 0:04:30.8]} 10... O-O-O {[%clk 0:04:42.5]} 11. Qa4
{[%clk 0:04:29.6]} 11... Rhe8 {[%clk 0:04:36.7]} 12. Kf1 {[%clk 0:04:22.1]}
12... Qe6 {[%clk 0:04:31]} 13. Re1 {[%clk 0:04:18.1]} 13... Qf5 {[%clk 0:04:27]}
14. Bxf6 {[%clk 0:04:07.2]} 14... gxf6 {[%clk 0:04:23.3]} 15. Ne4 {[%clk
0:04:04.8]} 15... Rxe4 {[%clk 0:04:20.4]} 16. dxe4 {[%clk 0:04:03.4]} 16... Qxe4
{[%clk 0:04:20.3]} 17. Ng5 {[%clk 0:03:27.8]} 17... Qf5 {[%clk 0:04:05.2]} 18.
Ne4 {[%clk 0:03:13.7]} 18... d3 {[%clk 0:03:54.6]} 19. exd3 {[%clk 0:02:52.7]}
19... Bb4 {[%clk 0:03:50.3]} 20. Re3 {[%clk 0:02:26.6]} 20... Kb8 {[%clk
0:03:34.7]} 21. a3 {[%clk 0:02:12.1]} 21... Bf8 {[%clk 0:03:22.1]} 22. b4 {[%clk
0:02:09.8]} 22... Bh6 {[%clk 0:03:19.3]} 23. b5 {[%clk 0:02:03.6]} 23... Bxe3
{[%clk 0:03:11.6]} 24. bxc6 {[%clk 0:02:00]} 24... Rxd3 {[%clk 0:03:08.8]} 25.
Kg1 {[%clk 0:00:33.7]} 25... Bxf2+ {[%clk 0:01:38.1]} 26. Nxf2 {[%clk
0:00:23.4]} 26... Rd2 {[%clk 0:01:35.6]} 27. Ne4 {[%clk 0:00:04.4]} 27... Rd1+
{[%clk 0:01:33]} 28. Kh2 {[%clk 0:00:03.1]} 28... Rxh1+ {[%clk 0:01:32.8]} 29.
Bxh1 {[%clk 0:00:01.9]} 29... Qc8 {[%clk 0:01:21.4]} 30. Nc5 {[%clk 0:00:00.4]}
30... Bf3 {[%clk 0:01:19.8]} 0-1

[Event "Live Chess"]
[Site "Chess.com"]
[Date "2023.05.21"]
[Round "-"]
[White "LutherSullivan"]
[Black "Biranidun"]
[Result "0-1"]
[WhiteElo "2178"]
[BlackElo "2544"]
[TimeControl "300"]
[EndTime "22:08:57 PDT"]
[Termination "Biranidun won by resignation"]

1. e4 {[%clk 0:04:56]} 1... c5 {[%clk 0:04:58.8]} 2. Nf3 {[%clk 0:04:53.8]} 2...
d6 {[%clk 0:04:58.2]} 3. d4 {[%clk 0:04:51.8]} 3... cxd4 {[%clk 0:04:58.1]} 4.
Nxd4 {[%clk 0:04:51.1]} 4... Nf6 {[%clk 0:04:57.7]} 5. Nc3 {[%clk 0:04:50.3]}
5... g6 {[%clk 0:04:57.3]} 6. Be3 {[%clk 0:04:48.5]} 6... Bg7 {[%clk 0:04:57]}
7. f3 {[%clk 0:04:48]} 7... O-O {[%clk 0:04:56.6]} 8. Qd2 {[%clk 0:04:47.2]}
8... Nc6 {[%clk 0:04:56.3]} 9. O-O-O {[%clk 0:04:46.2]} 9... d5 {[%clk
0:04:55.7]} 10. exd5 {[%clk 0:04:44.3]} 10... Nxd5 {[%clk 0:04:55.6]} 11. Nxc6
{[%clk 0:04:43.6]} 11... bxc6 {[%clk 0:04:54.8]} 12. Bd4 {[%clk 0:04:42.2]}
12... e5 {[%clk 0:04:54.2]} 13. Bc5 {[%clk 0:04:41.4]} 13... Re8 {[%clk
0:04:53.9]} 14. Ne4 {[%clk 0:04:40.9]} 14... Qc7 {[%clk 0:04:52.8]} 15. h4
{[%clk 0:04:29.8]} 15... f5 {[%clk 0:04:51.7]} 16. Ng5 {[%clk 0:04:23.4]} 16...
h6 {[%clk 0:04:49.6]} 17. Nh3 {[%clk 0:03:45.1]} 17... Rb8 {[%clk 0:04:48.2]}
18. h5 {[%clk 0:03:35]} 18... e4 {[%clk 0:04:31.3]} 19. Bd4 {[%clk 0:03:32.1]}
19... e3 {[%clk 0:04:25.7]} 20. Qd3 {[%clk 0:03:22.6]} 20... Bxd4 {[%clk
0:04:06.9]} 21. Qxd4 {[%clk 0:03:20.4]} 21... e2 {[%clk 0:04:06.5]} 22. Bxe2
{[%clk 0:03:17]} 22... Rxe2 {[%clk 0:04:06.4]} 23. hxg6 {[%clk 0:03:03.1]} 23...
Qb6 {[%clk 0:03:53.1]} 24. b3 {[%clk 0:02:07.2]} 24... Qxd4 {[%clk 0:03:49.4]}
25. Rxd4 {[%clk 0:02:06.7]} 25... Be6 {[%clk 0:03:38.8]} 26. c4 {[%clk
0:02:01.7]} 26... Nb4 {[%clk 0:03:37.5]} 27. Nf4 {[%clk 0:01:59.6]} 27... Nxa2+
{[%clk 0:03:32.5]} 28. Kd1 {[%clk 0:01:58.2]} 28... Nc3+ {[%clk 0:03:31.8]} 29.
Kc1 {[%clk 0:01:57.8]} 29... Rxb3 {[%clk 0:03:03.9]} 30. Rd8+ {[%clk 0:01:56.4]}
30... Kg7 {[%clk 0:03:02.9]} 31. Nxe6+ {[%clk 0:01:53.9]} 31... Rxe6 {[%clk
0:03:01.1]} 32. Kc2 {[%clk 0:01:49.3]} 32... Ra3 {[%clk 0:02:37.7]} 33. Kb2
{[%clk 0:01:48.1]} 33... Ra2+ {[%clk 0:02:28]} 34. Kxc3 {[%clk 0:01:46.4]} 34...
c5 {[%clk 0:02:21.3]} 35. Rhd1 {[%clk 0:01:30.3]} 35... Re3+ {[%clk 0:02:19]}
36. R1d3 {[%clk 0:01:23.9]} 36... Ra3+ {[%clk 0:02:18.4]} 37. Kd2 {[%clk
0:01:22.7]} 37... Raxd3+ {[%clk 0:02:18.3]} 38. Rxd3 {[%clk 0:01:20.6]} 38...
Rxd3+ {[%clk 0:02:18.2]} 39. Kxd3 {[%clk 0:01:20.1]} 39... Kxg6 {[%clk
0:02:18.1]} 40. Ke3 {[%clk 0:01:15]} 40... Kg5 {[%clk 0:02:16.5]} 41. g3 {[%clk
0:01:14.1]} 41... a5 {[%clk 0:02:14.7]} 42. Kd3 {[%clk 0:01:11.1]} 42... h5
{[%clk 0:02:13.1]} 43. Kc3 {[%clk 0:01:09.8]} 43... f4 {[%clk 0:02:12.5]} 0-1

[Event "Live Chess"]
[Site "Chess.com"]
[Date "2023.05.21"]
[Round "-"]
[White "raminguy"]
[Black "Singapourfeuj"]
[Result "0-1"]
[WhiteElo "1969"]
[BlackElo "2194"]
[TimeControl "300"]
[EndTime "22:09:52 PDT"]
[Termination "Singapourfeuj won by resignation"]

1. d4 {[%clk 0:04:54.9]} 1... Nf6 {[%clk 0:04:58.7]} 2. Nc3 {[%clk 0:04:54.1]}
2... d5 {[%clk 0:04:56.5]} 3. Bf4 {[%clk 0:04:53.3]} 3... e6 {[%clk 0:04:54.5]}
4. Nb5 {[%clk 0:04:51.7]} 4... Na6 {[%clk 0:04:52.5]} 5. e3 {[%clk 0:04:50.6]}
5... c6 {[%clk 0:04:48.6]} 6. Nc3 {[%clk 0:04:49.7]} 6... Bd6 {[%clk 0:04:47.2]}
7. Bxa6 {[%clk 0:04:49]} 7... bxa6 {[%clk 0:04:44.7]} 8. Bxd6 {[%clk 0:04:48]}
8... Qxd6 {[%clk 0:04:43.6]} 9. Nf3 {[%clk 0:04:47.4]} 9... c5 {[%clk
0:04:41.6]} 10. O-O {[%clk 0:04:45.5]} 10... cxd4 {[%clk 0:04:40.2]} 11. exd4
{[%clk 0:04:44.1]} 11... O-O {[%clk 0:04:38.5]} 12. a3 {[%clk 0:04:41.9]} 12...
Rb8 {[%clk 0:04:36.8]} 13. Rb1 {[%clk 0:04:24.9]} 13... Bd7 {[%clk 0:04:35.6]}
14. Ne5 {[%clk 0:04:21.9]} 14... Rfc8 {[%clk 0:04:32.2]} 15. Nxd7 {[%clk
0:04:19.8]} 15... Qxd7 {[%clk 0:04:26.6]} 16. Re1 {[%clk 0:04:16.2]} 16... h6
{[%clk 0:04:24.9]} 17. h3 {[%clk 0:04:13.2]} 17... Rc4 {[%clk 0:04:19.4]} 18.
Qd3 {[%clk 0:04:04.6]} 18... Qc7 {[%clk 0:04:13]} 19. Rec1 {[%clk 0:03:35.5]}
19... g6 {[%clk 0:04:09.4]} 20. Qe3 {[%clk 0:03:25.2]} 20... Kg7 {[%clk
0:04:07.8]} 21. f3 {[%clk 0:03:05.9]} 21... Nh5 {[%clk 0:03:57.7]} 22. Qe5+
{[%clk 0:02:29.9]} 22... Qxe5 {[%clk 0:03:56]} 23. dxe5 {[%clk 0:02:29.8]} 23...
Nf4 {[%clk 0:03:53.5]} 24. Kf2 {[%clk 0:02:16]} 24... g5 {[%clk 0:03:50.7]} 25.
Nd1 {[%clk 0:02:03]} 25... d4 {[%clk 0:03:38.1]} 26. b3 {[%clk 0:01:48.4]} 26...
Rc5 {[%clk 0:03:33.1]} 27. Kf1 {[%clk 0:01:32.8]} 27... Rxe5 {[%clk 0:03:30.1]}
28. Nf2 {[%clk 0:01:28.5]} 28... f5 {[%clk 0:03:28.1]} 29. g3 {[%clk 0:01:21.8]}
29... Nd5 {[%clk 0:03:23.4]} 30. Nd3 {[%clk 0:01:15.5]} 30... Re3 {[%clk
0:03:22.3]} 31. Kf2 {[%clk 0:01:10]} 31... Nc3 {[%clk 0:03:20.3]} 32. Re1 {[%clk
0:00:56.8]} 32... Nxb1 {[%clk 0:03:17.8]} 33. Rxb1 {[%clk 0:00:56.7]} 33... Kf6
{[%clk 0:03:15.9]} 34. Rb2 {[%clk 0:00:48.2]} 34... e5 {[%clk 0:03:11.7]} 35.
Nc5 {[%clk 0:00:45]} 35... Rc8 {[%clk 0:03:07.4]} 36. Nxa6 {[%clk 0:00:42.7]}
36... Rcc3 {[%clk 0:03:06.2]} 37. Nb4 {[%clk 0:00:35.5]} 37... Rxf3+ {[%clk
0:03:04.3]} 38. Ke2 {[%clk 0:00:33.8]} 38... Rce3+ {[%clk 0:03:03.2]} 39. Kd2
{[%clk 0:00:33]} 39... Rf2+ {[%clk 0:03:01.9]} 40. Kd1 {[%clk 0:00:31.5]} 40...
Rxg3 {[%clk 0:03:00.6]} 41. Nd3 {[%clk 0:00:24.9]} 41... Rxd3+ {[%clk
0:02:59.2]} 0-1